bitfinex/quotes_ETHUSD_20241123
["timestamp","ask_amount","ask_price","bid_price","bid_amount"]
[1732356686788,1.1471,3347.3,3346.6,0.847]
[1732356686994,1.1471,3347.3,3346.7,0.01497053]
[1732356690006,1.1471,3347.6,3346.7,0.01497053]
[1732356692316,1.18443764,3347.6,3346.6,0.297]
[1732356692626,1.1471,3347.4,3345.9,0.31196147]
[1732356692771,1.1471,3347.2,3345.9,0.31196147]
[1732356693113,1.36311484,3347.4,3345.9,0.31196147]
[1732356693114,1.1471,3347.0,3345.9,0.31196147]
[1732356693402,1.1471,3347.0,3345.9,0.01496147]
[1732356693615,1.1471,3347.0,3345.6,0.0149696]
[1732356694265,1.1471,3347.0,3346.2,0.297]
[1732356694583,1.1471,3347.0,3346.4,0.297]
[1732356694773,1.1471,3347.0,3346.6,0.297]
[1732356694971,1.1471,3347.0,3346.8,0.297]
[1732356695310,1.1471,3347.0,3346.9,0.847]
[1732356696217,1.1471,3347.0,3346.9,0.297]
[1732356696428,1.1471,3347.0,3346.1,0.297]
[1732356696717,1.1471,3347.0,3346.3,0.297]
[1732356697036,1.1471,3347.0,3346.0,0.55]
[1732356697037,1.1471,3347.0,3346.5,0.297]
[1732356697383,1.1471,3347.0,3346.7,0.297]
[1732356697582,9.63073703,3346.9,3346.8,0.847]
[1732356700711,9.63073703,3346.9,3346.8,35.847]
[1732356701027,12.63073703,3346.9,3346.8,35.297]
[1732356701232,9.63073703,3346.9,3346.8,35.297]
[1732356703585,9.63073703,3346.9,3346.8,35.0]
[1732356703785,1.1471,3346.9,3345.7,0.297]
[1732356704089,1.0535,3346.7,3345.8,0.01497268]
[1732356704920,1.0535,3346.7,3346.3,35.297]
[1732356709446,1.0535,3346.7,3346.4,0.01497726]
[1732356709590,1.0535,3346.7,3346.3,35.297]
[1732356709591,0.96,3346.6,3346.3,35.297]
[1732356710615,0.96,3346.6,3346.4,0.55]
[1732356713239,0.96,3346.6,3346.5,35.297]
[1732356714291,0.96,3346.6,3346.5,35.847]
[1732356716832,0.96,3346.6,3346.5,35.297]
[1732356717786,0.96,3346.6,3346.4,0.55]
[1732356718364,0.96,3346.6,3346.5,35.0]
[1732356718971,0.96,3346.9,3346.5,35.0]
[1732356720299,0.96,3346.9,3346.6,0.55]
[1732356720445,0.96,3346.9,3346.6,0.56496947]
[1732356720782,0.96,3346.9,3346.7,0.297]
[1732356720988,0.96,3346.9,3346.8,35.297]
[1732356721195,2.0135,3346.9,3346.8,35.0]
[1732356721340,2.21858457,3346.9,3346.8,35.0]
[1732356721855,1.0535,3346.8,3345.8,0.297]
[1732356722185,1.0535,3346.6,3346.0,0.297]
[1732356723073,1.0535,3346.6,3346.1,35.0]
[1732356723475,1.09085311,3346.6,3346.1,35.0]
[1732356724797,1.09085521,3346.6,3346.1,35.0]
[1732356724956,1.0838,3346.4,3346.1,35.0]
[1732356725566,1.0838,3346.4,3345.3,0.297]
[1732356725773,1.0838,3346.2,3345.3,0.297]
[1732356725971,1.0838,3346.0,3345.3,0.297]
[1732356726167,1.0838,3346.0,3345.5,0.297]
[1732356727214,1.0838,3346.0,3345.6,0.847]
[1732356727586,2.0438,3346.3,3345.6,0.847]
[1732356727785,2.0438,3346.3,3345.7,0.01498329]
[1732356729069,0.96,3346.3,3345.7,0.01498329]
[1732356729918,0.96,3346.3,3345.9,0.847]
[1732356730138,0.96,3346.3,3345.9,0.86197993]
[1732356730511,0.9343257,3346.3,3345.9,0.86197993]
[1732356730716,0.9343257,3346.3,3346.1,0.847]
[1732356730904,0.9143257,3346.2,3346.1,0.847]
[1732356734216,0.9143257,3346.2,3346.1,1.9983]
[1732356735245,0.9143257,3346.2,3346.1,0.847]
[1732356735944,0.9143257,3346.2,3346.1,0.297]
[1732356737209,0.9143257,3346.2,3346.1,0.847]
[1732356739452,0.9143257,3346.2,3346.1,35.847]
[1732356739828,0.9143257,3346.6,3346.1,35.847]
[1732356740030,0.9143257,3346.6,3346.2,0.847]
[1732356743022,0.9143257,3346.5,3346.2,0.847]
[1732356743563,0.9143257,3346.5,3346.3,35.0]
[1732356745572,0.9143257,3346.5,3346.4,0.297]
[1732356746572,0.9143257,3346.5,3346.3,0.297]
[1732356747058,0.9143257,3346.5,3346.4,35.297]
[1732356747854,0.9143257,3346.5,3346.4,35.847]
[1732356749951,0.9143257,3346.6,3346.4,40.0255]
[1732356750176,0.9143257,3346.7,3346.6,0.847]
[1732356750324,0.9143257,3346.7,3346.6,2.35623469]
[1732356751949,0.9143257,3347.5,3347.2,1.4755]
[1732356752149,0.9143257,3347.9,3347.4,0.297]
[1732356752354,0.9143257,3347.9,3347.5,0.86194807]
[1732356752858,0.9143257,3347.9,3347.5,0.847]
[1732356754148,0.03733648,3347.8,3346.9,0.297]
[1732356754363,1.1105,3347.7,3346.7,35.0]
[1732356754542,1.1105,3347.5,3346.7,35.0]
[1732356754740,1.1105,3347.4,3346.7,35.0]
[1732356755238,1.1105,3347.4,3346.0,0.297]
[1732356755439,0.9143257,3347.3,3346.1,0.01497314]
[1732356755773,1.12054316,3347.3,3346.2,0.297]
[1732356756153,1.12834898,3347.2,3346.6,0.297]
[1732356756476,0.9143257,3347.1,3346.6,35.297]
[1732356756694,1.11859317,3347.1,3346.6,35.297]
[1732356756842,0.9143257,3347.1,3346.6,35.297]
[1732356757041,1.091,3348.1,3346.7,1.79042441]
[1732356757246,0.9143257,3348.0,3346.7,1.79042441]
[1732356757486,0.9143257,3348.0,3347.2,0.847]
[1732356757700,0.03733611,3347.9,3347.2,0.847]
[1732356757984,1.091,3347.7,3347.2,0.847]
[1732356759043,0.9143257,3347.6,3347.2,0.847]
[1732356760447,0.9143257,3347.6,3347.2,0.86195409]
[1732356761284,0.9143257,3347.6,3347.5,0.55]
[1732356763152,0.9143257,3347.6,3347.5,0.847]
[1732356764914,2.0932257,3347.6,3347.5,35.297]
[1732356765275,2.0932257,3347.6,3347.0,0.297]
[1732356765475,2.0932257,3347.6,3347.2,0.297]
[1732356765715,2.0932257,3347.6,3347.4,0.297]
[1732356766901,0.9143257,3347.5,3347.4,0.297]
[1732356767120,1.1789,3347.3,3346.5,0.297]
[1732356767295,1.1789,3347.1,3346.5,0.297]
[1732356767829,0.03735004,3347.0,3346.5,0.297]
[1732356768113,0.03735004,3347.0,3346.1,0.297]
[1732356768679,1.1789,3347.1,3346.3,0.297]
[1732356768882,1.1789,3347.1,3346.5,0.297]
[1732356769191,1.1789,3347.1,3346.6,0.847]
[1732356769386,1.1789,3347.1,3346.6,0.297]
[1732356770243,1.1789,3347.1,3346.6,0.847]
[1732356770421,1.1789,3347.1,3346.7,0.55]
[1732356770581,1.1789,3347.1,3346.6,0.297]
[1732356770781,1.1789,3347.1,3346.6,0.3119698]
[1732356771189,1.1789,3347.1,3346.6,0.0149698]
[1732356771415,1.1789,3347.1,3346.5,0.297]
[1732356771623,1.1789,3347.1,3346.6,0.297]
[1732356772023,0.03734732,3347.0,3346.6,0.297]
[1732356772600,1.1789,3347.1,3346.5,0.297]
[1732356773033,0.9143257,3347.0,3346.5,0.297]
[1732356773216,0.0373496,3346.9,3346.5,0.297]
[1732356773602,0.0373496,3346.9,3346.3,0.297]
[1732356774890,1.1789,3346.8,3346.3,0.297]
[1732356775131,0.95167703,3346.7,3346.2,0.297]
[1732356775340,1.9993257,3346.6,3346.2,0.297]
[1732356775496,0.9143257,3346.5,3346.2,0.297]
[1732356776097,0.9143257,3346.5,3346.0,0.297]
[1732356776297,0.9143257,3346.5,3346.2,0.297]
[1732356777522,1.085,3346.3,3345.8,0.297]
[1732356778330,1.085,3346.3,3345.7,0.297]
[1732356778897,0.9143257,3346.2,3345.7,0.297]
[1732356779133,0.9143257,3346.2,3345.8,0.847]
[1732356781305,0.9143257,3346.2,3345.9,0.01498224]
[1732356781934,0.9143257,3346.1,3345.9,0.01498224]
[1732356782137,0.9143257,3346.1,3345.8,0.86198192]
[1732356782302,0.9143257,3346.1,3345.8,0.847]
[1732356784440,0.9143257,3346.1,3345.9,0.01498365]
[1732356784737,0.9143257,3346.1,3345.8,0.847]
[1732356784934,0.9143257,3346.7,3345.8,0.86198414]
[1732356785112,0.9143257,3346.7,3345.9,0.01497909]
[1732356785501,0.9143257,3346.7,3346.4,0.297]
[1732356785701,0.9143257,3346.7,3346.5,0.847]
[1732356786042,0.9143257,3347.1,3346.5,2.73957483]
[1732356786347,0.9143257,3347.1,3346.8,0.297]
[1732356786546,0.9143257,3347.1,3347.0,0.297]
[1732356786708,0.9143257,3347.1,3347.0,0.847]
[1732356787402,0.9143257,3347.7,3347.2,0.297]
[1732356787638,0.9143257,3347.7,3347.6,0.847]
[1732356787804,0.9143257,3347.7,3347.6,1.9226]
[1732356788132,0.9143257,3347.7,3347.6,1.6256]
[1732356789046,0.9143257,3347.7,3347.6,0.55]
[1732356790945,0.9143257,3348.3,3347.7,0.55]
[1732356791162,0.9143257,3348.2,3347.8,0.01494169]
[1732356791446,0.9143257,3348.2,3347.6,0.55]
[1732356792155,0.9143257,3348.3,3347.8,0.55]
[1732356793320,0.9143257,3348.3,3347.6,0.55]
[1732356793647,0.9143257,3348.3,3347.5,0.56494029]
[1732356793942,1.1392,3348.1,3347.0,1.0756]
[1732356794168,0.9143257,3348.0,3347.0,1.0756]
[1732356794318,0.9143257,3348.0,3346.9,0.01495364]
[1732356794517,0.1,3348.6,3346.4,1.0756]
[1732356794518,1.1392,3347.8,3346.4,1.0756]
[1732356794745,1.1392,3347.6,3346.5,0.01496437]
[1732356795618,0.95167027,3347.5,3345.5,0.01496441]
[1732356795813,0.95167027,3347.5,3345.5,1.0756]
[1732356795814,1.1392,3347.3,3345.5,1.0756]
[1732356796053,1.1392,3347.1,3345.5,1.0756]
[1732356796357,1.1392,3346.9,3345.6,0.01498667]
[1732356796661,1.1392,3346.9,3345.5,0.01498664]
[1732356796855,1.1392,3346.7,3345.4,0.01498726]
[1732356797167,1.1392,3346.5,3344.9,1.89257483]
[1732356797361,1.1392,3346.3,3345.0,0.01499497]
[1732356797518,0.95168561,3346.2,3344.9,2.96817483]
[1732356797719,1.1392,3346.1,3344.9,2.96817483]
[1732356798750,0.03736235,3346.0,3344.9,2.96817483]
[1732356798923,1.1392,3345.8,3344.7,0.01499511]
[1732356799116,0.03736476,3345.7,3344.6,0.0150048]
[1732356799417,1.1392,3345.8,3344.6,3.0150048]
[1732356800259,1.1392,3345.8,3344.7,0.37365136]
[1732356800463,1.1392,3345.8,3344.8,0.56500566]
[1732356801588,1.1392,3345.8,3344.8,5.45758049]
[1732356801796,1.1392,3345.8,3345.0,1.89257483]
[1732356801951,1.1392,3345.8,3345.1,0.56499821]
[1732356802674,1.1392,3345.8,3345.1,0.55]
[1732356803080,0.9143257,3345.7,3345.1,0.55]
[1732356805997,0.9143257,3345.6,3345.1,0.55]
[1732356806287,0.9143257,3345.6,3344.9,0.55]
[1732356806493,0.9143257,3345.6,3344.9,0.56500025]
[1732356806869,0.9143257,3345.6,3344.9,0.55]
[1732356807066,0.9143257,3345.6,3345.0,0.01500463]
[1732356807390,0.9143257,3345.6,3345.2,1.89257483]
[1732356807751,0.9143257,3345.6,3345.3,0.55]
[1732356808090,0.9143257,3345.6,3345.5,0.55]
[1732356808949,1.1606,3346.1,3345.5,0.55]
[1732356809155,1.1606,3346.1,3345.5,0.86198877]
[1732356809716,1.1606,3346.8,3346.0,0.297]
[1732356809859,1.1606,3346.8,3346.1,0.55]
[1732356809860,0.9143257,3346.7,3346.1,0.55]
[1732356812402,0.9143257,3346.7,3346.0,0.297]
[1732356812897,0.9143257,3346.7,3346.1,0.55]
[1732356813863,1.1606,3346.5,3346.1,0.55]
[1732356814495,1.1606,3346.5,3346.0,0.297]
[1732356814496,1.1606,3346.4,3346.0,0.297]
[1732356814703,1.19795958,3346.3,3345.2,2.18957483]
[1732356814907,0.9143257,3346.2,3345.0,0.31199226]
[1732356815079,1.1606,3346.1,3345.0,2.20456709]
[1732356815706,1.1606,3346.1,3345.2,0.297]
[1732356815869,1.1606,3346.1,3345.4,0.297]
[1732356816305,1.1606,3346.1,3345.6,0.297]
[1732356816798,1.1606,3346.1,3345.7,0.55]
[1732356817378,0.9143257,3346.2,3345.7,0.55]
[1732356818199,0.9143257,3346.1,3346.0,0.297]
[1732356818406,0.9143257,3346.1,3346.0,0.847]
[1732356820567,0.9143257,3346.1,3346.0,35.847]
[1732356825676,0.9143257,3346.1,3346.0,0.847]
[1732356826316,0.9143257,3346.1,3346.0,35.847]
[1732356829432,0.9143257,3346.1,3346.0,0.847]
[1732356829780,0.9143257,3346.1,3346.0,35.847]
[1732356832092,2.0490257,3346.1,3346.0,35.297]
[1732356834023,0.9143257,3346.1,3346.0,35.847]
[1732356835988,0.9143257,3346.3,3346.2,0.297]
[1732356836387,0.9143257,3346.3,3346.2,0.847]
[1732356837738,0.9143257,3346.3,3346.2,1.964]
[1732356839189,0.9143257,3346.3,3346.2,0.847]
[1732356839392,0.9143257,3346.3,3346.2,35.847]
[1732356842092,0.9143257,3346.8,3346.4,0.297]
[1732356842321,0.9143257,3346.7,3346.6,0.847]
[1732356844741,0.9143257,3346.7,3346.6,3.86017483]
[1732356845040,0.9143257,3346.7,3346.6,4.23382619]
[1732356845736,0.9143257,3346.7,3346.6,39.23382619]
[1732356846094,0.9143257,3347.2,3346.6,39.23382619]
[1732356846338,0.9143257,3347.2,3347.0,0.297]
[1732356846506,0.9143257,3347.2,3347.1,0.847]
[1732356848049,0.9143257,3347.4,3347.3,0.297]
[1732356848205,0.9143257,3347.4,3347.3,0.847]
[1732356848635,0.9143257,3347.4,3347.3,35.847]
[1732356849654,0.9143257,3347.9,3347.5,0.297]
[1732356849859,1.111,3348.3,3347.3,35.92365136]
[1732356849860,0.9143257,3347.8,3347.7,0.847]
[1732356850015,0.03733614,3349.4,3347.7,3.86017483]
[1732356850016,0.9143257,3348.2,3347.7,3.86017483]
[1732356850212,0.9143257,3348.2,3348.1,0.297]
[1732356850447,0.9143257,3348.2,3348.1,0.847]
[1732356851456,0.9143257,3348.2,3348.1,35.847]
[1732356852356,0.9143257,3348.8,3348.1,35.847]
[1732356852647,0.9143257,3348.7,3348.3,0.297]
[1732356852960,0.9143257,3348.7,3348.1,35.55]
[1732356852961,0.9143257,3348.7,3348.2,0.55]
[1732356853455,0.9143257,3348.6,3348.4,0.55]
[1732356856315,0.9143257,3348.6,3348.1,0.55]
[1732356856850,0.9143257,3348.6,3348.3,0.55]
[1732356857156,0.9143257,3348.5,3348.1,0.55]
[1732356857717,0.9143257,3348.5,3348.3,0.55]
[1732356858157,0.9143257,3348.5,3348.3,1.6702]
[1732356858313,0.9143257,3348.5,3348.3,2.04385136]
[1732356858625,0.9143257,3348.5,3348.4,35.92365136]
[1732356859058,0.9143257,3348.5,3348.4,37.81622619]
[1732356859853,0.9143257,3348.5,3348.4,40.81622619]
[1732356860060,0.9143257,3349.1,3348.5,3.55]
[1732356860263,0.9143257,3349.1,3348.5,0.55]
[1732356860758,0.9143257,3349.1,3348.7,0.55]
[1732356861122,0.9143257,3349.0,3348.6,0.55]
[1732356861319,0.9143257,3349.0,3348.7,1.1202]
[1732356861532,0.9143257,3349.0,3348.8,35.0]
[1732356861738,0.9143257,3349.3,3348.9,0.55]
[1732356862028,0.9143257,3349.2,3349.1,1.89257483]
[1732356862359,0.9143257,3349.9,3349.2,1.1202]
[1732356862565,0.9143257,3349.8,3349.3,35.55]
[1732356862921,0.9143257,3349.8,3349.6,0.2971]
[1732356863527,0.9143257,3349.8,3349.7,0.8471]
[1732356863729,0.9143257,3349.8,3349.7,0.2971]
[1732356864474,0.9143257,3349.8,3349.7,0.8471]
[1732356866936,0.9143257,3349.8,3349.7,35.8471]
[1732356868077,0.9143257,3349.9,3349.8,0.8471]
[1732356868261,1.1563,3350.5,3349.8,1.9363]
[1732356868770,1.1563,3350.9,3350.0,0.8471]
[1732356868976,0.9143257,3350.8,3350.0,0.8471]
[1732356870443,0.9143257,3350.8,3350.4,0.2971]
[1732356870669,0.9143257,3350.8,3350.6,0.2971]
[1732356870877,0.9143257,3350.8,3350.7,0.8471]
[1732356872259,0.9143257,3351.1,3350.7,0.8471]
[1732356874077,0.9143257,3351.1,3350.9,0.8471]
[1732356874970,0.9143257,3351.1,3351.0,36.9933]
[1732356875270,1.17920388,3351.9,3351.0,36.9933]
[1732356875271,1.1419,3351.9,3351.4,0.2971]
[1732356875476,0.94,3351.8,3351.4,0.2971]
[1732356875667,0.94,3351.8,3351.0,36.1462]
[1732356875668,0.94,3351.8,3351.6,0.2971]
[1732356876248,0.94,3351.8,3351.7,0.8471]
[1732356877689,0.94,3351.8,3351.7,1.9933]
[1732356877898,0.94,3352.1,3351.7,3.88587483]
[1732356878190,0.94,3352.1,3351.7,3.58877483]
[1732356878396,0.94,3352.1,3351.8,35.0]
[1732356878712,0.94,3352.1,3351.9,0.55]
[1732356879115,0.94,3352.1,3351.8,0.55]
[1732356880812,0.94,3352.2,3351.8,3.93732536]
[1732356881111,0.94,3352.2,3351.9,0.38732536]
[1732356881267,0.94,3352.2,3351.9,0.93732536]
[1732356881472,0.94,3352.2,3351.9,2.08352536]
[1732356881672,0.94,3352.2,3351.9,5.08352536]
[1732356881922,0.1504522,3352.3,3352.0,0.55]
[1732356882233,0.1504522,3352.3,3352.2,3.55]
[1732356882503,0.1504522,3352.3,3352.2,3.93732536]
[1732356884693,0.1504522,3352.3,3352.2,5.09852536]
[1732356888028,0.94,3353.1,3352.2,5.09852536]
[1732356888029,0.94,3353.1,3352.4,0.55]
[1732356888242,0.94,3353.7,3352.4,0.55]
[1732356888906,0.94,3353.7,3352.4,5.44257483]
[1732356889633,1.1166,3353.6,3352.4,5.44257483]
[1732356890737,1.1166,3353.6,3352.4,5.82990019]
[1732356890891,1.1166,3353.6,3352.4,6.12700019]
[1732356892436,1.1166,3353.4,3352.4,0.55]
[1732356892808,1.1166,3353.4,3352.3,0.55]
[1732356893194,0.94,3353.3,3352.3,0.55]
[1732356898442,0.94,3353.3,3352.5,0.55]
[1732356898742,1.1166,3353.6,3352.8,1.89257483]
[1732356899041,0.1,3355.2,3353.0,0.55]
[1732356899042,0.94,3353.5,3353.0,0.55]
[1732356900602,0.94,3353.5,3353.2,1.89257483]
[1732356900820,0.94,3354.2,3353.3,0.55]
[1732356901029,0.94,3354.2,3353.5,0.55]
[1732356901937,0.94,3354.2,3353.2,0.55]
[1732356901938,0.03726781,3354.1,3353.2,0.55]
[1732356902137,1.15386781,3354.1,3353.2,0.55]
[1732356902341,1.1166,3354.1,3353.2,0.55]
[1732356902643,0.94,3354.2,3353.3,1.0748]
[1732356902840,0.94,3354.2,3353.4,0.55]
[1732356905314,0.94,3354.4,3353.4,0.55]
[1732356906017,1.12946732,3354.3,3353.0,1.1237]
[1732356906549,0.94,3354.2,3352.1,1.89257483]
[1732356906703,1.33642543,3354.1,3352.2,1.1237]
[1732356906903,1.1294787,3354.1,3352.2,1.1237]
[1732356907142,1.1294787,3354.1,3352.2,1.51102536]
[1732356907855,1.1294787,3354.1,3352.2,4.1237]
[1732356908011,1.0922,3353.9,3352.2,4.1237]
[1732356908212,1.0922,3353.7,3352.2,4.1237]
[1732356908413,1.12947867,3353.6,3352.2,4.1237]
[1732356908951,1.0922,3353.4,3352.2,1.1237]
[1732356909257,0.1,3354.2,3352.2,1.1237]
[1732356909258,1.0922,3353.2,3352.2,1.1237]
[1732356909462,1.0922,3353.2,3351.2,0.1]
[1732356909463,1.0922,3353.0,3351.3,1.89257483]
[1732356909610,1.0922,3352.8,3351.4,1.1237]
[1732356909809,0.39110337,3354.6,3351.4,1.1237]
[1732356909810,1.0922,3352.6,3351.4,1.1237]
[1732356910014,2.06948741,3352.5,3351.4,1.1237]
[1732356910253,2.0322,3352.5,3351.4,1.1237]
[1732356910623,2.0322,3352.5,3351.4,1.51102536]
[1732356911028,2.0322,3352.5,3351.4,1.1237]
[1732356911223,2.0322,3352.5,3351.4,4.1237]
[1732356911423,2.0322,3352.5,3351.4,4.51102536]
[1732356911642,0.94,3352.5,3351.6,1.1237]
[1732356911961,0.94,3352.5,3351.7,0.38732536]
[1732356912465,0.94,3352.5,3352.0,0.55]
[1732356912618,0.94,3352.7,3352.0,0.55]
[1732356913453,0.94,3352.7,3351.7,0.55]
[1732356914468,1.0922,3352.5,3351.4,3.0]
[1732356914672,1.12948688,3352.4,3351.2,0.2971]
[1732356914988,1.0922,3352.2,3350.9,1.1237]
[1732356915143,0.94,3352.3,3350.6,1.1237]
[1732356915144,1.0922,3352.0,3350.6,1.1237]
[1732356915518,1.0922,3352.0,3350.6,1.51102536]
[1732356915777,1.0922,3352.0,3350.7,2.18967483]
[1732356916086,1.0922,3352.0,3350.7,0.2971]
[1732356916750,1.0922,3352.0,3350.8,0.55]
[1732356917643,0.03729328,3351.9,3350.8,0.55]
[1732356917839,1.0922,3352.1,3350.8,0.55]
[1732356918149,1.12949327,3352.0,3351.1,0.2971]
[1732356918357,1.0922,3352.0,3351.1,0.2971]
[1732356918693,1.0922,3351.8,3350.3,0.2971]
[1732356918869,0.94,3351.7,3350.7,1.4208]
[1732356919680,0.94,3351.7,3351.3,1.89257483]
[1732356919978,1.0922,3352.3,3351.5,0.2971]
[1732356920179,1.0922,3353.3,3351.7,2.18967483]
[1732356920392,0.94,3353.2,3351.9,0.2971]
[1732356920545,0.94,3353.2,3352.1,0.2971]
[1732356920743,1.0922,3353.1,3352.3,0.2971]
[1732356921076,1.0922,3353.1,3352.4,0.8471]
[1732356921258,0.94,3353.0,3352.4,0.8471]
[1732356923006,1.1259,3352.9,3352.4,0.55]
[1732356924189,1.1259,3352.9,3352.1,0.55]
[1732356924482,0.94,3352.9,3352.1,0.55]
[1732356925151,0.94,3353.1,3352.1,0.55]
[1732356926778,1.1259,3353.0,3351.8,0.8471]
[1732356926963,1.1259,3353.0,3351.8,1.23442536]
[1732356927794,1.1259,3353.0,3352.0,0.55]
[1732356928171,1.1259,3353.0,3352.0,0.93732536]
[1732356928597,1.1259,3353.0,3352.1,1.1676]
[1732356928893,1.1259,3353.0,3352.2,0.55]
[1732356929256,0.94,3352.9,3352.2,0.55]
[1732356932997,0.94,3352.9,3352.4,0.55]
[1732356933221,0.94,3352.9,3352.2,0.55]
[1732356935984,0.94,3352.9,3351.8,4.4647]
[1732356936189,0.94,3352.9,3351.9,0.55]
[1732356936411,1.1259,3352.8,3351.9,0.55]
[1732356936854,1.1259,3352.8,3351.7,0.8471]
[1732356937034,0.94,3352.7,3351.7,0.8471]
[1732356938137,1.1259,3352.6,3351.6,1.1676]
[1732356938445,1.1259,3352.6,3351.6,1.55492536]
[1732356938733,1.1259,3352.6,3351.7,0.38732536]
[1732356939035,1.1259,3352.6,3351.7,5.27990019]
[1732356939610,1.1259,3352.6,3351.8,0.55]
[1732356939921,1.1259,3352.6,3351.8,3.55]
[1732356940314,1.1259,3352.6,3351.8,3.93732536]
[1732356940513,1.1259,3352.6,3351.8,3.55]
[1732356940713,1.1259,3352.6,3352.1,0.55]
[1732356941245,2.0659,3352.6,3351.8,0.55]
[1732356941621,2.0659,3352.6,3352.3,0.55]
[1732356944346,0.94,3352.5,3352.3,0.55]
[1732356945145,0.94,3352.5,3352.4,35.55]
[1732356948525,0.94,3352.5,3352.4,0.55]
[1732356949149,0.94,3352.5,3352.4,35.55]
[1732356949338,1.1457,3352.4,3351.4,4.02244277]
[1732356949559,1.1457,3352.4,3351.5,0.38732536]
[1732356949560,0.94,3352.3,3351.5,0.38732536]
[1732356949846,0.94,3352.3,3351.9,3.0]
[1732356950236,0.94,3352.3,3351.5,0.38732536]
[1732356950636,0.94,3352.3,3351.6,3.55]
[1732356950840,0.94,3352.3,3351.8,3.55]
[1732356951148,0.94,3352.3,3351.8,0.55]
[1732356951729,0.94,3352.3,3352.0,0.55]
[1732356952522,0.94,3352.3,3352.2,0.55]
[1732356952757,0.94,3352.3,3352.0,0.55]
[1732356953153,0.94,3352.3,3352.2,35.0]
[1732356953353,0.94,3352.3,3352.2,35.55]
[1732356955919,1.1553,3353.1,3352.2,37.06902536]
[1732356956137,1.1553,3353.1,3352.3,0.38732536]
[1732356956733,1.1553,3353.1,3352.4,0.55]
[1732356956918,1.1553,3353.1,3352.4,0.93732536]
[1732356957323,1.1553,3353.1,3352.3,0.55]
[1732356958072,1.1553,3353.1,3352.5,0.55]
[1732356958358,1.1553,3353.4,3352.5,0.93732536]
[1732356958954,0.465,3353.3,3352.7,0.55]
[1732356959129,0.465,3353.3,3352.8,0.38732536]
[1732356959335,0.465,3353.3,3352.9,35.55]
[1732356959540,0.465,3353.6,3352.9,35.93732536]
[1732356960285,0.465,3353.6,3352.9,35.55]
[1732356961147,0.465,3353.6,3352.9,35.93732536]
[1732356961340,0.465,3353.6,3353.0,1.1317]
[1732356961536,0.465,3353.5,3353.1,0.55]
[1732356961846,0.465,3353.5,3353.1,0.93732536]
[1732356962047,0.465,3353.9,3353.2,1.1317]
[1732356962359,0.465,3354.2,3353.3,0.93732536]
[1732356962672,0.465,3354.2,3353.5,0.55]
[1732356962979,0.465,3354.2,3353.4,0.55]
[1732356963459,0.465,3354.2,3353.7,0.55]
[1732356963838,1.0949,3354.1,3353.7,0.55]
[1732356964236,1.0949,3354.1,3353.8,35.0]
[1732356964457,1.0949,3354.1,3353.9,0.55]
[1732356965152,0.465,3354.2,3354.0,35.0]
[1732356965383,0.465,3354.1,3354.0,35.55]
[1732356966582,1.5599,3354.1,3354.0,35.55]
[1732356971217,0.465,3354.1,3354.0,35.55]
[1732356973107,0.465,3354.1,3354.0,35.8471]
[1732356974105,0.465,3354.1,3354.0,0.8471]
[1732356974430,0.465,3354.6,3354.2,0.2971]
[1732356974722,1.0912,3355.0,3354.6,0.2971]
[1732356974937,0.465,3354.9,3354.6,0.2971]
[1732356975488,0.465,3354.8,3354.7,0.8471]
[1732356975827,0.415,3354.8,3354.7,0.8471]
[1732356976124,0.415,3354.8,3354.7,2.0056]
[1732356976492,0.415,3354.8,3354.7,0.8471]
[1732356976885,1.5062,3354.8,3354.7,0.8471]
[1732356977498,1.5062,3354.8,3354.7,0.55]
[1732356977701,1.5062,3354.8,3354.1,0.2971]
[1732356978097,1.0912,3354.7,3354.1,0.2971]
[1732356978306,1.0912,3354.5,3354.1,0.2971]
[1732356978602,0.365,3354.4,3354.1,0.2971]
[1732356979218,0.365,3354.4,3354.0,35.0]
[1732356979219,1.0912,3354.2,3354.0,35.0]
[1732356979436,0.365,3354.1,3354.0,35.0]
[1732356980317,0.365,3354.1,3354.0,35.2971]
[1732356980694,0.365,3354.1,3354.0,35.0]
[1732356981339,0.365,3354.1,3354.0,35.2971]
[1732356981495,0.365,3354.1,3354.0,35.8471]
[1732356986211,0.365,3354.1,3354.0,35.55]
[1732356986835,1.545,3354.1,3354.0,35.55]
[1732356987260,1.545,3354.1,3354.0,0.55]
[1732356987633,1.545,3354.1,3353.7,0.55]
[1732356987934,1.545,3354.1,3353.7,0.93732536]
[1732356988113,0.365,3354.1,3353.7,0.93732536]
[1732356988512,0.365,3354.1,3353.9,0.55]
[1732356989242,0.365,3354.0,3353.9,1.6424]
[1732356989465,0.365,3354.0,3353.9,36.6424]
[1732356992256,0.365,3354.5,3353.9,36.6424]
[1732356992913,0.365,3354.5,3354.0,0.2971]
[1732356993353,0.365,3354.5,3354.1,0.8471]
[1732356993569,0.365,3354.8,3354.3,0.8471]
[1732356993785,0.365,3354.8,3354.5,0.8471]
[1732356996794,0.365,3354.7,3354.5,0.8471]
[1732356996955,0.365,3354.7,3354.5,35.8471]
[1732357001363,0.365,3355.0,3354.5,35.8471]
[1732357001602,0.365,3355.3,3354.5,35.8471]